bitfinex/quotes_SOLUSD_20240827
["timestamp","ask_amount","ask_price","bid_price","bid_amount"]
[1724798847047,51.48845223,146.66,146.58,6.1358]
[1724798847746,20.0,146.65,146.58,6.1358]
[1724798848246,20.0,146.65,146.59,45.0]
[1724798848464,20.0,146.65,146.58,6.1358]
[1724798848962,20.0,146.65,146.53,6.1358]
[1724798848963,51.48845223,146.63,146.53,6.1358]
[1724798849244,71.48845223,146.65,146.53,6.1358]
[1724798849245,20.0,146.62,146.53,6.1358]
[1724798849955,20.0,146.64,146.53,6.1358]
[1724798850143,51.48845223,146.68,146.53,6.1358]
[1724798850325,51.48845223,146.72,146.54,45.12549]
[1724798850649,51.48845223,146.65,146.54,0.12549]
[1724798850851,51.48845223,146.65,146.54,0.25098]
[1724798851236,82.65614566,146.72,146.54,0.25098]
[1724798851237,66.99595223,146.72,146.54,51.73943223]
[1724798851635,45.0,146.71,146.54,51.73943223]
[1724798851835,51.48845223,146.67,146.54,0.25098]
[1724798852031,51.48845223,146.61,146.54,0.12549]
[1724798852330,51.48845223,146.61,146.53,6.1358]
[1724798852926,20.0,146.6,146.53,6.1358]
[1724798853324,51.48845223,146.58,146.51,0.835341]
[1724798853736,20.0,146.57,146.51,0.835341]
[1724798854263,51.48845223,146.61,146.51,0.835341]
[1724798854429,51.48845223,146.65,146.51,0.835341]
[1724798855127,51.48845223,146.68,146.52,0.25098]
[1724798855657,51.48845223,146.68,146.52,45.25098]
[1724798855864,51.48845223,146.68,146.53,20.0]
[1724798856158,51.48845223,146.68,146.54,45.25098]
[1724798856338,51.48845223,146.68,146.55,20.0]
[1724798856534,51.48845223,146.68,146.56,45.25098]
[1724798857162,20.0,146.67,146.56,45.25098]
[1724798857355,51.48845223,146.62,146.56,45.0]
[1724798857652,20.0,146.61,146.51,0.835341]
[1724798859769,20.0,146.61,146.52,0.25098]
[1724798860270,20.0,146.61,146.52,45.25098]
[1724798860565,51.48845223,146.59,146.52,45.0]
[1724798860864,51.48845223,146.59,146.51,20.835341]
[1724798861072,51.48845223,146.59,146.51,0.835341]
[1724798861254,20.0,146.58,146.51,0.835341]
[1724798862776,51.48845223,146.59,146.51,0.835341]
[1724798862953,51.48845223,146.56,146.51,0.835341]
[1724798863270,20.0,146.55,146.51,0.835341]
[1724798865554,67.92545223,146.62,146.51,0.835341]
[1724798865755,51.48845223,146.65,146.52,0.25098]
[1724798866288,51.48845223,146.68,146.53,22.6007]
[1724798866453,51.48845223,146.68,146.54,45.25098]
[1724798866961,51.48845223,146.68,146.55,0.62546812]
[1724798867173,51.48845223,146.68,146.56,0.25098]
[1724798867677,384.9,146.7,146.54,45.0]
[1724798867678,51.48845223,146.65,146.54,45.0]
[1724798867847,51.48845223,146.62,146.53,22.6007]
[1724798868279,8.52249899,146.67,146.54,0.12549]
[1724798868444,8.52249899,146.67,146.54,0.25098]
[1724798868445,51.48845223,146.67,146.54,0.25098]
[1724798868643,51.48845223,146.64,146.54,0.25098]
[1724798868970,20.25098,146.63,146.53,22.6007]
[1724798869293,51.48845223,146.61,146.53,22.6007]
[1724798869461,20.0,146.6,146.53,22.6007]
[1724798870771,51.48845223,146.65,146.53,6.4956]
[1724798870969,51.48845223,146.65,146.54,45.12549]
[1724798871275,51.48845223,146.72,146.55,68.06265223]
[1724798871567,51.48845223,146.72,146.58,51.48845223]
[1724798871875,51.48845223,146.72,146.59,45.12549]
[1724798872062,51.48845223,146.72,146.59,45.25098]
[1724798872372,51.48845223,146.72,146.6,6.0662]
[1724798872575,51.48845223,146.72,146.61,45.0]
[1724798872952,20.0,146.71,146.61,45.0]
[1724798873149,51.48845223,146.63,146.55,22.6404]
[1724798873567,20.0,146.62,146.55,22.6404]
[1724798874181,20.0,146.62,146.55,6.0662]
[1724798874385,20.0,146.62,146.51,7.496541]
[1724798876181,51.48845223,146.6,146.51,7.496541]
[1724798877059,20.0,146.59,146.51,7.496541]
[1724798877458,51.48845223,146.57,146.51,0.835341]
[1724798877854,20.0,146.59,146.51,0.835341]
[1724798878078,51.48845223,146.65,146.51,0.835341]
[1724798878379,27.348992,146.69,146.53,51.48845223]
[1724798878562,27.348992,146.69,146.56,51.48845223]
[1724798878756,51.48845223,146.72,146.58,6.1825]
[1724798879088,51.48845223,146.72,146.59,45.12549]
[1724798879281,51.48845223,146.72,146.6,0.12549]
[1724798879858,0.79159831,146.71,146.59,45.0]
[1724798880060,51.48845223,146.64,146.58,6.1825]
[1724798880570,51.48845223,146.64,146.53,6.1825]
[1724798880769,51.48845223,146.61,146.53,6.1825]
[1724798881275,20.0,146.6,146.53,6.1825]
[1724798882598,20.0,146.6,146.47,6.6233]
[1724798883475,51.48845223,146.58,146.47,6.6233]
[1724798883682,20.0,146.57,146.47,6.6233]
[1724798883883,51.48845223,146.55,146.43,6.0723]
[1724798884273,20.0,146.54,146.43,6.0723]
[1724798885277,51.48845223,146.58,146.43,57.56075223]
[1724798885581,60.35453656,146.65,146.51,17.284841]
[1724798885784,51.48845223,146.65,146.51,17.284841]
[1724798886197,51.48845223,146.65,146.52,45.12549]
[1724798886488,51.48845223,146.65,146.51,0.835341]
[1724798886489,51.48845223,146.58,146.51,0.835341]
[1724798887072,51.48845223,146.55,146.51,0.835341]
[1724798887696,20.0,146.54,146.51,0.835341]
[1724798888792,20.0,146.57,146.51,0.835341]
[1724798889177,0.25098,146.56,146.51,0.835341]
[1724798890597,51.48845223,146.53,146.51,0.835341]
[1724798890906,20.12549,146.52,146.51,0.835341]
[1724798891076,1.6117466,146.61,146.51,0.835341]
[1724798891283,57.67985223,146.64,146.51,0.835341]
[1724798891478,51.48845223,146.64,146.53,6.3282]
[1724798891899,51.48845223,146.64,146.54,45.12549]
[1724798892197,51.48845223,146.61,146.53,6.3282]
[1724798892798,51.48845223,146.58,146.51,0.835341]
[1724798892974,51.48845223,146.55,146.51,0.835341]
[1724798893386,51.48845223,146.52,146.51,0.835341]
[1724798893611,51.73943223,146.52,146.51,0.835341]
[1724798894092,71.73943223,146.52,146.51,0.835341]
[1724798895494,71.48845223,146.52,146.51,0.835341]
[1724798895687,20.0,146.52,146.51,0.835341]
[1724798895899,51.48845223,146.58,146.51,0.835341]
[1724798897100,51.48845223,146.61,146.51,0.835341]
[1724798897411,8.97051197,146.63,146.51,0.835341]
[1724798897592,51.48845223,146.64,146.52,0.25098]
[1724798897991,51.48845223,146.64,146.51,0.835341]
[1724798898317,51.48845223,146.61,146.51,0.835341]
[1724798898503,51.48845223,146.58,146.51,0.835341]
[1724798899310,51.48845223,146.61,146.51,0.835341]
[1724798899537,51.48845223,146.64,146.52,0.25098]
[1724798900228,51.48845223,146.67,146.52,51.73943223]
[1724798900513,19.29651789,146.71,146.58,51.48845223]
[1724798900688,19.29651789,146.71,146.59,45.25098]
[1724798900887,19.29651789,146.71,146.6,0.62547712]
[1724798901090,19.29651789,146.71,146.59,45.25098]
[1724798901501,51.48845223,146.73,146.59,45.25098]
[1724798901827,51.48845223,146.7,146.59,45.25098]
[1724798902117,8.86608433,146.69,146.59,45.25098]
[1724798902417,51.48845223,146.7,146.59,45.25098]
[1724798902606,60.35453656,146.72,146.59,45.25098]
[1724798902800,51.48845223,146.72,146.59,45.25098]
[1724798903123,8.99157433,146.71,146.59,45.25098]
[1724798903290,28.99157433,146.71,146.59,45.25098]
[1724798903622,20.12549,146.71,146.59,45.25098]
[1724798903798,20.0,146.71,146.59,45.25098]
[1724798904003,51.48845223,146.72,146.59,45.25098]
[1724798904910,9.11706433,146.71,146.59,45.25098]
[1724798905211,20.0,146.7,146.59,45.25098]
[1724798906416,51.48845223,146.68,146.59,45.25098]
[1724798907618,8.99157433,146.71,146.59,45.25098]
[1724798907921,51.48845223,146.72,146.6,1.36374901]
[1724798908092,51.48845223,146.75,146.61,22.73748]
[1724798908296,51.48845223,146.72,146.62,45.12549]
[1724798908907,8.86608433,146.76,146.63,0.12549]
[1724798909111,57.5738878,146.79,146.63,0.12549]
[1724798909799,59.14534554,146.79,146.63,0.12549]
[1724798910032,8.86608433,146.78,146.63,0.12549]
[1724798910209,51.48845223,146.74,146.63,0.12549]
[1724798910715,51.48845223,146.71,146.62,0.12549]
[1724798911094,28.96373354,146.73,146.62,0.12549]
[1724798911295,20.0,146.73,146.62,0.12549]
[1724798911511,51.48845223,146.71,146.62,0.12549]
[1724798911819,51.48845223,146.71,146.61,22.4865]
[1724798912008,51.48845223,146.68,146.61,22.4865]
[1724798912206,51.48845223,146.65,146.61,22.4865]
[1724798912620,51.48845223,146.65,146.61,6.192]
[1724798912803,51.48845223,146.62,146.56,22.6556]
[1724798913603,51.48845223,146.65,146.56,22.6556]
[1724798913806,20.0,146.64,146.56,22.6556]
[1724798914131,20.0,146.64,146.56,6.2203]
[1724798914132,51.48845223,146.62,146.56,6.2203]
[1724798914305,20.0,146.61,146.56,6.2203]
[1724798914725,66.67312599,146.72,146.56,6.2203]
[1724798914933,51.48845223,146.66,146.56,6.2203]
[1724798915101,0.25098,146.65,146.56,6.2203]
[1724798915414,20.0,146.65,146.56,6.2203]
[1724798915623,51.48845223,146.66,146.57,45.12549]
[1724798916227,51.48845223,146.69,146.57,45.12549]
[1724798916533,51.48845223,146.69,146.58,0.12549]
[1724798916702,51.48845223,146.72,146.59,15.7789]
[1724798916905,51.48845223,146.75,146.61,6.2597]
[1724798917315,51.48845223,146.75,146.62,45.25098]
[1724798919309,51.48845223,146.72,146.62,45.25098]
[1724798920301,51.48845223,146.72,146.62,45.0]
[1724798920643,20.0,146.71,146.62,45.0]
[1724798920810,6.08543557,146.78,146.62,45.0]
[1724798921014,51.48845223,146.76,146.62,45.0]
[1724798921221,20.0,146.75,146.62,45.0]
[1724798921425,51.48845223,146.73,146.62,45.0]
[1724798921614,51.48845223,146.73,146.63,0.25098]
[1724798921812,20.0,146.75,146.61,6.2597]
[1724798921813,51.48845223,146.7,146.61,6.2597]
[1724798922226,51.48845223,146.73,146.61,6.2597]
[1724798923234,51.48845223,146.73,146.62,45.25098]
[1724798923440,51.48845223,146.7,146.61,6.2597]
[1724798924331,51.48845223,146.73,146.61,6.2597]
[1724798924501,20.0,146.72,146.61,6.2597]
[1724798924701,20.0,146.72,146.62,45.25098]
[1724798925301,6.08543557,146.78,146.63,21.8992]
[1724798925524,51.48845223,146.77,146.64,45.25098]
[1724798926218,51.48845223,146.74,146.64,45.25098]
[1724798926416,51.48845223,146.74,146.64,45.12549]
[1724798926825,51.48845223,146.71,146.63,21.8992]
[1724798927009,20.0,146.7,146.63,21.8992]
[1724798927209,20.0,146.71,146.63,21.8992]
[1724798927535,51.48845223,146.75,146.63,21.8992]
[1724798927731,20.0,146.74,146.63,21.8992]
[1724798928228,51.48845223,146.79,146.64,45.12549]
[1724798928435,53.07726427,146.8,146.65,0.12549]
[1724798928619,51.48845223,146.8,146.65,1.48629123]
[1724798928820,51.48845223,146.8,146.66,0.12549]
[1724798929526,51.48845223,146.8,146.66,6.2844]
[1724798929721,51.48845223,146.8,146.67,45.25098]
[1724798929933,51.48845223,146.8,146.68,16.2732]
[1724798930228,51.48845223,146.8,146.69,45.12549]
[1724798930427,51.48845223,146.8,146.7,0.12549]
[1724798930617,51.48845223,146.76,146.69,45.12549]
[1724798930934,51.48845223,146.76,146.7,0.12549]
[1724798931541,51.48845223,146.79,146.71,6.4654]
[1724798931709,51.48845223,146.82,146.72,45.25098]
[1724798932235,51.48845223,146.79,146.72,45.25098]
[1724798933325,6.08543557,146.88,146.72,45.25098]
[1724798933528,51.48845223,146.86,146.73,22.0786]
[1724798933730,51.48845223,146.86,146.74,45.25098]
[1724798934919,51.48845223,146.83,146.74,45.25098]
[1724798935739,51.48845223,146.83,146.75,6.3495]
[1724798935944,51.48845223,146.83,146.76,45.25098]
[1724798936136,51.48845223,146.86,146.76,45.25098]
[1724798937253,51.48845223,146.89,146.77,16.0629]
[1724798937421,51.48845223,146.89,146.78,51.60048]
[1724798937616,51.48845223,146.93,146.8,6.5552]
[1724798937844,51.48845223,146.94,146.82,22.8865]
[1724798938022,1.59880179,147.0,146.84,6.5552]
[1724798938225,51.48845223,146.94,146.85,0.12549]
[1724798938425,51.48845223,146.94,146.85,45.25098]
[1724798938620,51.48845223,146.91,146.85,45.25098]
[1724798939028,51.48845223,146.94,146.85,45.25098]
[1724798939936,51.48845223,146.94,146.86,16.3313]
[1724798940143,51.48845223,146.94,146.87,45.25098]
[1724798940945,51.48845223,146.94,146.87,45.12549]
[1724798941433,51.48845223,146.94,146.88,0.12549]
[1724798941856,51.48845223,146.91,146.87,0.12549]
[1724798942155,2.38595895,147.03,146.89,21.7947]
[1724798942346,0.835341,147.03,146.91,6.0143]
[1724798942548,51.48845223,146.98,146.91,6.0143]
[1724798943135,51.48845223,147.01,146.91,6.0143]
[1724798943440,0.835341,147.03,146.92,45.25098]
[1724798943742,51.48845223,147.01,146.92,45.25098]
[1724798943945,0.835341,147.03,146.91,6.0143]
[1724798943946,51.48845223,146.98,146.91,6.0143]
[1724798944328,51.48845223,146.95,146.89,15.7648]
[1724798944532,51.48845223,146.92,146.86,6.202]
[1724798945128,1.61278561,147.01,146.86,6.202]
[1724798945328,51.48845223,146.95,146.86,6.202]
[1724798945728,20.0,146.94,146.86,6.202]
[1724798945958,51.48845223,146.92,146.86,6.202]
[1724798946136,51.48845223,146.89,146.86,6.202]
[1724798946540,51.48845223,146.89,146.84,15.2227]
[1724798946744,51.48845223,146.86,146.82,6.1995]
[1724798946933,51.48845223,146.86,146.67,22.0439]
[1724798946934,51.48845223,146.83,146.78,6.1995]
[1724798947439,51.48845223,146.8,146.74,21.3327]
[1724798948654,51.48845223,146.77,146.69,21.2772]
[1724798948958,51.48845223,146.87,146.74,15.2075]
[1724798949964,51.48845223,146.84,146.74,15.2075]
[1724798950344,51.48845223,146.86,146.73,6.0697]
[1724798950345,51.48845223,146.78,146.73,6.0697]
[1724798950661,20.0,146.83,146.69,15.8158]
[1724798951038,0.12549,146.84,146.69,15.8158]
[1724798951233,20.25098,146.84,146.69,15.8158]
[1724798951537,20.0,146.84,146.69,15.8158]
[1724798951740,51.48845223,146.82,146.7,45.25098]
[1724798952041,51.48845223,146.82,146.7,0.25098]
[1724798952361,20.0,146.81,146.7,0.25098]
[1724798952667,51.48845223,146.88,146.71,51.48845223]
[1724798952960,51.48845223,146.87,146.72,0.25098]
[1724798953354,21.1327,147.01,146.77,51.48845223]
[1724798953536,51.48845223,146.94,146.78,45.25098]
[1724798954041,51.48845223,146.97,146.8,51.48845223]
[1724798954255,58.61296557,147.0,146.82,6.2402]
[1724798954433,0.835341,147.03,146.83,98.1008515]
[1724798954633,51.48845223,147.0,146.83,96.73943223]
[1724798954833,51.48845223,146.97,146.83,96.73943223]
[1724798955049,0.835341,147.03,146.83,45.25098]
[1724798955050,51.48845223,146.94,146.83,45.25098]
[1724798955337,51.48845223,146.91,146.83,45.12549]
[1724798955641,51.48845223,146.96,146.83,45.12549]
[1724798955838,20.0,146.95,146.83,45.12549]
[1724798956041,51.48845223,147.0,146.83,96.61394223]
[1724798956243,0.835341,147.03,146.84,20.0]
[1724798956452,51.48845223,147.0,146.85,45.12549]
[1724798956652,0.835341,147.03,146.87,15.5888]
[1724798956942,51.48845223,147.01,146.88,20.25098]
[1724798957152,51.48845223,146.98,146.89,45.0]
[1724798957333,0.835341,147.03,146.89,45.0]
[1724798957539,51.48845223,147.01,146.9,0.25098]
[1724798957737,51.48845223,147.01,146.91,0.12549]
[1724798958338,0.835341,147.03,146.93,51.48845223]
[1724798958557,50.0,147.19,146.93,51.48845223]
[1724798958558,313.495,147.17,146.95,5.1525]
[1724798958850,51.48845223,147.12,146.96,96.61394223]
[1724798959143,51.48845223,147.09,146.96,45.25098]
[1724798959846,51.48845223,147.12,146.96,45.12549]
[1724798959847,51.48845223,147.03,146.96,45.12549]
[1724798960064,51.48845223,147.06,146.97,0.12549]
[1724798960762,51.48845223,147.03,146.96,45.12549]
[1724798960963,51.48845223,147.03,146.92,6.5483]
[1724798961271,20.0,147.05,146.92,6.5483]
[1724798961272,51.48845223,147.0,146.92,6.5483]
[1724798961439,51.48845223,147.03,146.92,6.5483]
[1724798961866,20.0,147.05,146.92,6.5483]
[1724798962245,51.48845223,147.07,146.92,6.5483]
[1724798962441,51.48845223,147.07,146.93,0.25098]
[1724798962668,51.48845223,147.07,146.93,45.25098]
[1724798962872,20.0,147.06,146.94,45.0]
[1724798963043,20.0,147.06,146.95,0.25098]
[1724798963044,51.48845223,147.03,146.95,0.25098]
[1724798963862,20.0,147.06,146.95,0.25098]
[1724798964470,20.0,147.11,146.95,51.73943223]
[1724798964647,20.0,147.11,146.96,1.30148179]
[1724798964968,51.48845223,147.09,146.97,0.25098]
[1724798965269,0.835341,147.18,146.98,73.76555223]
[1724798965454,51.48845223,147.16,147.01,51.48845223]
[1724798965642,51.48845223,147.16,147.02,0.25098]
[1724798965842,51.48845223,147.16,147.02,45.25098]
[1724798966065,51.48845223,147.13,147.02,45.25098]
[1724798966262,0.835341,147.18,147.02,45.25098]
[1724798966438,51.48845223,147.14,147.02,45.25098]
[1724798967114,0.835341,147.18,147.02,45.25098]
[1724798967244,51.48845223,147.15,147.02,45.25098]
[1724798967663,51.48845223,147.12,147.02,45.25098]
[1724798967950,51.48845223,147.12,147.02,0.25098]
[1724798968576,51.48845223,147.09,147.02,0.25098]
[1724798968867,51.48845223,147.06,146.98,22.2771]
[1724798970372,51.48845223,147.12,146.98,22.2771]
[1724798970580,51.48845223,147.04,146.92,22.4137]
[1724798970774,51.48845223,147.01,146.92,22.4137]
[1724798970988,51.48845223,146.98,146.86,22.4137]
[1724798971485,51.48845223,146.94,146.86,22.4137]
[1724798971690,51.48845223,146.91,146.86,6.6536]
[1724798971858,51.48845223,146.91,146.77,23.0359]
[1724798972284,20.0,146.93,146.77,31.4073416]
[1724798972479,51.48845223,146.93,146.78,8.3714416]
[1724798972781,51.48845223,146.9,146.78,8.3714416]
[1724798973198,51.48845223,146.87,146.77,23.0359]
[1724798973488,51.48845223,146.87,146.78,8.3714416]
[1724798973864,51.48845223,146.9,146.78,8.3714416]
[1724798974278,51.48845223,147.07,146.78,59.85989383]
[1724798974564,51.48845223,146.95,146.79,8.3714416]
[1724798974784,20.0,146.94,146.8,0.12549]
[1724798975391,20.0,146.94,146.8,0.25098]
[1724798975560,20.0,146.94,146.8,45.25098]
[1724798976863,51.48845223,146.98,146.81,51.48845223]
[1724798977068,51.48845223,146.98,146.82,45.25098]
[1724798977398,51.48845223,147.01,146.84,51.48845223]
[1724798977600,51.48845223,147.0,146.86,6.012]
[1724798977896,51.48845223,147.0,146.87,45.81600447]
[1724798978264,51.48845223,147.0,146.87,45.25098]
[1724798978885,51.48845223,147.0,146.88,0.91596855]
[1724798979194,51.48845223,147.0,146.89,0.25098]
[1724798979363,6.7966,147.14,146.9,16.14499]
[1724798979569,51.48845223,147.09,146.93,51.48845223]
[1724798979891,51.48845223,147.09,146.94,46.41708101]
[1724798980064,51.48845223,147.12,146.96,51.48845223]
[1724798980269,51.48845223,147.15,146.99,51.48845223]
[1724798980489,51.48845223,147.15,147.0,1.41660504]
[1724798980787,51.48845223,147.15,147.0,46.41660504]
[1724798981163,51.48845223,147.15,147.0,45.25098]
[1724798981489,51.48845223,147.15,147.0,52.08398]
[1724798981994,0.835341,147.18,147.0,52.08398]
[1724798981995,52.32379323,147.18,147.02,51.48845223]
[1724798982202,52.32379323,147.18,147.03,45.25098]
[1724798982698,51.48845223,147.15,147.03,45.25098]
[1724798982868,51.48845223,147.16,147.03,45.25098]
[1724798983664,51.48845223,147.16,147.04,45.0]
[1724798983865,51.48845223,147.13,147.05,0.25098]
[1724798984062,50.73845223,147.13,147.05,0.12549]
[1724798984462,51.48845223,147.16,147.05,0.12549]
[1724798984662,0.835341,147.18,147.06,51.48845223]
[1724798984985,0.835341,147.18,147.07,45.25098]
[1724798985173,0.835341,147.18,147.09,51.48845223]
[1724798985369,0.835341,147.18,147.1,45.25098]
[1724798986176,51.48845223,147.25,147.11,5.67615193]
[1724798986393,51.48845223,147.28,147.12,45.25098]
[1724798986592,51.48845223,147.28,147.13,1.35874807]
[1724798986794,51.48845223,147.28,147.14,0.25098]
[1724798987103,51.48845223,147.25,147.14,1.60972794]
[1724798987590,1.60818101,147.3,147.14,1.60972794]
[1724798987909,27.231968,147.32,147.14,0.25098]
[1724798987910,27.230638,147.32,147.14,0.25098]
[1724798988081,51.48845223,147.27,147.15,1.35829746]
[1724798988280,51.48845223,147.27,147.16,0.25098]
[1724798988607,8.39057039,147.32,147.16,1.60909877]
[1724798988773,51.48845223,147.25,147.16,0.25098]
[1724798989388,51.48845223,147.25,147.12,45.0]
[1724798989389,51.48845223,147.25,147.11,4.3174]
[1724798989695,51.48845223,147.22,147.11,4.3174]
[1724798990591,51.48845223,147.19,147.08,6.2937]
[1724798990788,71.48845223,147.21,147.08,6.2937]
[1724798991879,71.48845223,147.21,147.09,0.12549]
[1724798992079,71.48845223,147.21,147.09,0.25098]
[1724798992275,51.48845223,147.17,147.09,0.25098]
[1724798992772,20.0,147.21,147.09,0.12549]
[1724798993082,51.48845223,147.22,147.09,0.12549]
[1724798993292,51.48845223,147.26,147.11,51.48845223]
[1724798993492,51.48845223,147.26,147.12,0.12549]
[1724798994169,51.48845223,147.26,147.12,45.25098]
[1724798994877,1.53843382,147.29,147.12,45.25098]
[1724798995095,51.48845223,147.28,147.12,45.25098]
[1724798995280,51.48845223,147.28,147.13,1.35639077]
[1724798995503,50.98845223,147.28,147.14,0.25098]
[1724798995803,50.98845223,147.28,147.15,1.35620641]
[1724798995975,50.98845223,147.28,147.16,0.25098]
[1724798996180,50.98845223,147.28,147.16,0.12549]
[1724798996398,50.98845223,147.28,147.17,0.12549]
[1724798996603,51.48845223,147.25,147.16,0.12549]
[1724798997407,51.48845223,147.22,147.08,6.2937]
[1724798997575,51.48845223,147.22,147.08,14.67352073]
[1724798998400,20.0,147.27,147.08,7.84052073]
[1724798998603,51.48845223,147.25,147.09,6.833]
[1724798998813,20.0,147.24,147.09,6.833]
[1724798999299,20.0,147.24,147.1,52.08398]
[1724798999503,20.0,147.24,147.1,103.57243223]
[1724798999708,51.48845223,147.25,147.11,1.35654112]
[1724799000004,20.0,147.24,147.12,0.25098]
[1724799000378,20.0,147.24,147.13,17.36659993]
[1724799000682,51.48845223,147.25,147.14,45.25098]
[1724799000993,51.48845223,147.25,147.15,1.35651563]
[1724799001176,9.27549567,147.33,147.15,1.35651563]
[1724799001177,51.48845223,147.28,147.16,6.3831]
[1724799001372,51.48845223,147.28,147.17,46.48182128]
[1724799001600,51.48845223,147.28,147.18,1.48172912]
[1724799001798,51.48845223,147.28,147.19,0.12549]
[1724799002402,51.48845223,147.28,147.18,0.25098]
[1724799002907,51.48845223,147.25,147.16,6.3831]
[1724799003085,51.48845223,147.22,147.16,6.3831]
[1724799003290,51.48845223,147.22,147.13,16.0099]
[1724799003492,51.48845223,147.19,147.13,16.0099]
[1724799003893,51.48845223,147.19,147.11,6.1778]
[1724799004185,51.48845223,147.16,147.11,6.1778]
[1724799004480,51.48845223,147.16,147.07,15.0371]
[1724799004481,51.48845223,147.18,147.07,15.0371]
[1724799004686,60.99638,147.26,147.07,15.0371]
[1724799004887,51.48845223,147.18,147.07,15.0371]
[1724799005722,20.0,147.25,147.07,15.0371]
[1724799006013,51.48845223,147.24,147.09,51.48845223]
[1724799006698,51.48845223,147.21,147.1,45.0]
[1724799007022,51.48845223,147.21,147.11,0.12549]
[1724799007785,51.48845223,147.28,147.11,0.12549]
[1724799008009,51.48845223,147.28,147.14,6.833]
[1724799008220,51.48845223,147.31,147.16,21.9373]
[1724799008511,51.48845223,147.31,147.17,73.30246524]
[1724799008692,51.48845223,147.31,147.17,65.25098]
[1724799008884,51.48845223,147.31,147.18,6.5238]
[1724799009085,51.48845223,147.31,147.19,45.25098]
[1724799010107,0.835341,147.33,147.21,51.48845223]
[1724799010301,0.835341,147.33,147.22,45.25098]
[1724799010627,52.32379323,147.33,147.22,45.25098]
[1724799010787,51.48845223,147.3,147.22,45.25098]
[1724799010988,51.48845223,147.3,147.18,6.5238]
[1724799012413,51.48845223,147.28,147.18,6.5238]
[1724799012709,51.48845223,147.24,147.16,15.1043]
[1724799012905,20.12549,147.27,147.13,6.4978]
[1724799013106,51.48845223,147.22,147.13,6.4978]
[1724799013607,20.0,147.27,147.13,6.4978]
[1724799013797,51.48845223,147.27,147.13,6.4978]
[1724799014110,0.835341,147.33,147.14,101.48845223]
[1724799014284,51.48845223,147.32,147.15,20.0]
[1724799014491,51.48845223,147.32,147.16,6.833]
[1724799014717,51.48845223,147.32,147.17,72.08398]
[1724799014915,51.48845223,147.32,147.13,21.6659416]
[1724799014916,51.48845223,147.26,147.13,6.4978]
[1724799015096,0.835341,147.33,147.13,6.4978]
[1724799015097,51.48845223,147.23,147.13,6.4978]
[1724799015612,51.48845223,147.29,147.13,57.98625223]
[1724799015812,51.48845223,147.29,147.14,50.0]
[1724799016021,0.835341,147.33,147.16,101.48845223]
[1724799016330,0.835341,147.33,147.17,20.0]
[1724799016625,0.835341,147.33,147.18,6.833]
[1724799016915,0.835341,147.33,147.19,52.08398]
[1724799017124,0.835341,147.33,147.2,6.0442]
[1724799017302,0.835341,147.33,147.21,45.25098]
[1724799017503,0.835341,147.33,147.22,78.32145223]
[1724799017703,0.835341,147.33,147.23,45.25098]
[1724799018816,7.33520106,147.39,147.23,45.25098]
[1724799018817,15.0444,147.45,147.24,3.4824]
[1724799018997,51.48845223,147.38,147.25,0.25098]
[1724799019197,51.48845223,147.35,147.25,0.25098]
[1724799021100,7.33520106,147.4,147.24,3.4824]
[1724799021316,51.48845223,147.31,147.24,3.4824]
[1724799021901,51.48845223,147.31,147.2,6.0442]
[1724799021902,27.03578,147.39,147.2,6.0442]
[1724799022104,51.48845223,147.31,147.2,6.0442]
[1724799022316,51.48845223,147.28,147.2,6.0442]
[1724799022695,51.48845223,147.25,147.15,6.2804]
[1724799023093,309.03520106,147.38,147.16,51.48845223]
[1724799023393,51.48845223,147.33,147.16,101.48845223]
[1724799023598,20.0,147.32,147.16,101.48845223]
[1724799023918,256.7,147.44,147.28,51.48845223]
[1724799024234,51.48845223,147.42,147.29,45.25098]
[1724799024441,51.48845223,147.39,147.29,45.25098]
[1724799025024,7.33520106,147.42,147.29,45.25098]
[1724799025219,51.48845223,147.39,147.29,45.25098]
[1724799026221,20.0,147.38,147.29,45.25098]
[1724799026402,7.33520106,147.42,147.29,45.25098]
[1724799026603,51.48845223,147.39,147.29,45.25098]